[Event "Late-Titled-Tuesday-Blitz-September-12-2023"]
[Site "Chess.com"]
[Date "2023.09.12"]
[Round "9"]
[White "Good_Knight_Kiss"]
[Black "maksimys18"]
[Result "0-1"]
[WhiteElo "2347"]
[BlackElo "2493"]
[TimeControl "180+1"]
[EndTime "15:37:33 PDT"]
[Termination "maksimys18 won on time"]

1. e4 {[%clk 0:02:52.9]} 1... e6 {[%clk 0:03:00.9]} 2. d4 {[%clk 0:02:52.4]}
2... d5 {[%clk 0:03:01.3]} 3. Nc3 {[%clk 0:02:52.2]} 3... Bb4 {[%clk 0:03:01.1]}
4. exd5 {[%clk 0:02:52.1]} 4... exd5 {[%clk 0:03:01.1]} 5. Bd3 {[%clk
0:02:52.2]} 5... Ne7 {[%clk 0:03:01.6]} 6. Qf3 {[%clk 0:02:51.1]} 6... O-O
{[%clk 0:02:59.5]} 7. Ne2 {[%clk 0:02:50.8]} 7... c6 {[%clk 0:02:59.2]} 8. O-O
{[%clk 0:02:50.5]} 8... Nd7 {[%clk 0:02:58.9]} 9. Ng3 {[%clk 0:02:48.1]} 9...
Nf6 {[%clk 0:02:57.9]} 10. h3 {[%clk 0:02:48.4]} 10... Ng6 {[%clk 0:02:56.7]}
11. Bg5 {[%clk 0:02:46.1]} 11... Be7 {[%clk 0:02:55.2]} 12. Rae1 {[%clk
0:02:34.5]} 12... Re8 {[%clk 0:02:55]} 13. a3 {[%clk 0:02:25.6]} 13... Be6
{[%clk 0:02:52]} 14. Nf5 {[%clk 0:02:25.3]} 14... Bxf5 {[%clk 0:02:50.5]} 15.
Qxf5 {[%clk 0:02:06.1]} 15... Nd7 {[%clk 0:02:48.6]} 16. Be3 {[%clk 0:01:50.4]}
16... Ndf8 {[%clk 0:02:47.1]} 17. g3 {[%clk 0:01:44.8]} 17... Qd7 {[%clk
0:02:47]} 18. h4 {[%clk 0:01:37.1]} 18... Qxf5 {[%clk 0:02:46.4]} 19. Bxf5
{[%clk 0:01:38]} 19... Bf6 {[%clk 0:02:43.8]} 20. h5 {[%clk 0:01:25.6]} 20...
Ne7 {[%clk 0:02:43.3]} 21. Bh3 {[%clk 0:01:22.4]} 21... h6 {[%clk 0:02:43.3]}
22. f4 {[%clk 0:01:14.3]} 22... Rad8 {[%clk 0:02:42]} 23. g4 {[%clk 0:01:02.4]}
23... c5 {[%clk 0:02:42.1]} 24. Ne2 {[%clk 0:00:59.7]} 24... cxd4 {[%clk
0:02:42]} 25. Nxd4 {[%clk 0:00:50.1]} 25... Nc6 {[%clk 0:02:41.8]} 26. Nxc6
{[%clk 0:00:45.2]} 26... bxc6 {[%clk 0:02:42.7]} 27. c3 {[%clk 0:00:38.1]} 27...
d4 {[%clk 0:02:41.3]} 28. Bxd4 {[%clk 0:00:35.3]} 28... Bxd4+ {[%clk 0:02:41]}
29. cxd4 {[%clk 0:00:35]} 29... Rxe1 {[%clk 0:02:41.4]} 30. Rxe1 {[%clk
0:00:35.9]} 30... Rxd4 {[%clk 0:02:41.7]} 31. Rc1 {[%clk 0:00:21.2]} 31... Ne6
{[%clk 0:02:38.1]} 32. Rxc6 {[%clk 0:00:17.4]} 32... Nxf4 {[%clk 0:02:38.2]} 33.
Bf1 {[%clk 0:00:17.4]} 33... Rd2 {[%clk 0:02:35.1]} 34. b4 {[%clk 0:00:15.8]}
34... g6 {[%clk 0:02:29]} 35. hxg6 {[%clk 0:00:15.4]} 35... fxg6 {[%clk
0:02:29.9]} 36. Ra6 {[%clk 0:00:10.3]} 36... Rd7 {[%clk 0:02:18.2]} 37. Kf2
{[%clk 0:00:10.2]} 37... Kg7 {[%clk 0:02:15.9]} 38. Ke3 {[%clk 0:00:07.6]} 38...
Nd5+ {[%clk 0:02:11.8]} 0-1

[Event "Late-Titled-Tuesday-Blitz-September-12-2023"]
[Site "Chess.com"]
[Date "2023.09.12"]
[Round "9"]
[White "mbojan"]
[Black "Maksimus1998"]
[Result "0-1"]
[WhiteElo "2759"]
[BlackElo "2593"]
[TimeControl "180+1"]
[EndTime "15:37:44 PDT"]
[Termination "Maksimus1998 won by checkmate"]

1. a3 {[%clk 0:03:00.9]} 1... d5 {[%clk 0:02:58.4]} 2. e3 {[%clk 0:02:54.9]}
2... Nf6 {[%clk 0:02:55.5]} 3. c4 {[%clk 0:02:54.9]} 3... e6 {[%clk 0:02:49.6]}
4. Nf3 {[%clk 0:02:53.7]} 4... a6 {[%clk 0:02:47.4]} 5. b3 {[%clk 0:02:53.1]}
5... c5 {[%clk 0:02:45.5]} 6. Bb2 {[%clk 0:02:53]} 6... Nc6 {[%clk 0:02:45.6]}
7. d4 {[%clk 0:02:51]} 7... cxd4 {[%clk 0:02:44.8]} 8. Nxd4 {[%clk 0:02:48.7]}
8... Bd6 {[%clk 0:02:40.1]} 9. Nd2 {[%clk 0:02:47.9]} 9... O-O {[%clk
0:02:39.7]} 10. Nxc6 {[%clk 0:02:43.6]} 10... bxc6 {[%clk 0:02:39.3]} 11. Qc2
{[%clk 0:02:38.1]} 11... e5 {[%clk 0:02:35.5]} 12. e4 {[%clk 0:02:35.3]} 12...
a5 {[%clk 0:02:32.3]} 13. Bd3 {[%clk 0:02:30.4]} 13... d4 {[%clk 0:02:28.5]} 14.
c5 {[%clk 0:02:29.5]} 14... Bc7 {[%clk 0:02:25.7]} 15. O-O {[%clk 0:02:28.7]}
15... Be6 {[%clk 0:02:24.7]} 16. b4 {[%clk 0:02:08.7]} 16... Qb8 {[%clk
0:02:17.3]} 17. Bc4 {[%clk 0:01:55.5]} 17... axb4 {[%clk 0:02:04.8]} 18. Bxe6
{[%clk 0:01:52.9]} 18... fxe6 {[%clk 0:02:05.7]} 19. Qc4 {[%clk 0:01:45.9]}
19... bxa3 {[%clk 0:02:05.7]} 20. Qxe6+ {[%clk 0:01:38.6]} 20... Kh8 {[%clk
0:02:06.1]} 21. Bxa3 {[%clk 0:01:37.7]} 21... Qb5 {[%clk 0:01:43]} 22. Rfb1
{[%clk 0:00:31.2]} 22... Qd3 {[%clk 0:01:40.5]} 23. Qxc6 {[%clk 0:00:25.5]}
23... Qxd2 {[%clk 0:01:21.3]} 24. Qxc7 {[%clk 0:00:25.8]} 24... Nxe4 {[%clk
0:01:21.2]} 25. c6 {[%clk 0:00:26.1]} 25... Rxa3 {[%clk 0:01:10.4]} 26. h3
{[%clk 0:00:21.9]} 26... Qxf2+ {[%clk 0:01:09.4]} 27. Kh1 {[%clk 0:00:22.4]}
27... Rxh3+ {[%clk 0:01:07.8]} 28. gxh3 {[%clk 0:00:22.8]} 28... Ng3# {[%clk
0:01:08]} 0-1

[Event "Late-Titled-Tuesday-Blitz-September-12-2023"]
[Site "Chess.com"]
[Date "2023.09.12"]
[Round "9"]
[White "KaydenTroffChess"]
[Black "BillieKimbah"]
[Result "1-0"]
[WhiteElo "2759"]
[BlackElo "3004"]
[TimeControl "180+1"]
[EndTime "15:37:47 PDT"]
[Termination "KaydenTroffChess won by checkmate"]

1. d4 {[%clk 0:02:59.9]} 1... d5 {[%clk 0:02:58.6]} 2. Nf3 {[%clk 0:03:00]} 2...
Nf6 {[%clk 0:02:58.3]} 3. Bf4 {[%clk 0:03:00]} 3... Bf5 {[%clk 0:02:55.8]} 4. e3
{[%clk 0:03:00]} 4... e6 {[%clk 0:02:56.3]} 5. Nbd2 {[%clk 0:02:59.9]} 5... Nbd7
{[%clk 0:02:55.6]} 6. Ne5 {[%clk 0:02:59.3]} 6... Nxe5 {[%clk 0:02:54.1]} 7.
Bxe5 {[%clk 0:02:59.3]} 7... Bd6 {[%clk 0:02:52.9]} 8. Bg3 {[%clk 0:02:50.8]}
8... h6 {[%clk 0:02:50.8]} 9. Bd3 {[%clk 0:02:50.3]} 9... Bxd3 {[%clk 0:02:50]}
10. cxd3 {[%clk 0:02:50.8]} 10... Bxg3 {[%clk 0:02:49.1]} 11. hxg3 {[%clk
0:02:50.9]} 11... O-O {[%clk 0:02:49.3]} 12. Rc1 {[%clk 0:02:47.2]} 12... c6
{[%clk 0:02:49.3]} 13. Nf3 {[%clk 0:02:40]} 13... Qa5+ {[%clk 0:02:45.3]} 14.
Qd2 {[%clk 0:02:11.8]} 14... Qxa2 {[%clk 0:02:43.5]} 15. Ne5 {[%clk 0:02:11.6]}
15... Qa6 {[%clk 0:02:22.6]} 16. g4 {[%clk 0:01:56.9]} 16... Qb6 {[%clk
0:02:14.8]} 17. f4 {[%clk 0:01:53.3]} 17... Qd8 {[%clk 0:01:49.3]} 18. g5 {[%clk
0:01:43.8]} 18... hxg5 {[%clk 0:01:47.6]} 19. g4 {[%clk 0:01:35.3]} 19... Re8
{[%clk 0:01:27.5]} 20. fxg5 {[%clk 0:00:57.5]} 20... Nh7 {[%clk 0:01:26.8]} 21.
Qh2 {[%clk 0:00:52.6]} 21... Qxg5 {[%clk 0:01:25.6]} 22. Qxh7+ {[%clk
0:00:49.3]} 22... Kf8 {[%clk 0:01:25.4]} 23. Ke2 {[%clk 0:00:44.1]} 23... Ke7
{[%clk 0:01:11.7]} 24. Rh5 {[%clk 0:00:42.9]} 24... Qf6 {[%clk 0:01:09.2]} 25.
Rf1 {[%clk 0:00:41.4]} 25... Rh8 {[%clk 0:01:09.1]} 26. Rxf6 {[%clk 0:00:41.1]}
26... Kxf6 {[%clk 0:01:04.3]} 27. Rf5+ {[%clk 0:00:30.7]} 27... Ke7 {[%clk
0:01:00.5]} 28. Rxf7+ {[%clk 0:00:30.4]} 28... Kd6 {[%clk 0:01:00.7]} 29. Rd7#
{[%clk 0:00:25.6]} 1-0

[Event "Late-Titled-Tuesday-Blitz-September-12-2023"]
[Site "Chess.com"]
[Date "2023.09.12"]
[Round "9"]
[White "Parhamov"]
[Black "sergiochess83"]
[Result "0-1"]
[WhiteElo "3084"]
[BlackElo "2935"]
[TimeControl "180+1"]
[EndTime "15:37:49 PDT"]
[Termination "sergiochess83 won by resignation"]

1. d4 {[%clk 0:03:00.9]} 1... d5 {[%clk 0:02:54.6]} 2. e4 {[%clk 0:03:01.8]}
2... dxe4 {[%clk 0:02:52.2]} 3. Be2 {[%clk 0:03:02.7]} 3... Nf6 {[%clk
0:02:49.5]} 4. Kf1 {[%clk 0:03:03.6]} 4... Nc6 {[%clk 0:02:43.6]} 5. Bb5 {[%clk
0:02:59.4]} 5... e5 {[%clk 0:02:34.6]} 6. Ne2 {[%clk 0:02:54.6]} 6... Bc5 {[%clk
0:02:23.9]} 7. Be3 {[%clk 0:02:49]} 7... O-O {[%clk 0:02:18.8]} 8. Bxc6 {[%clk
0:02:47.8]} 8... bxc6 {[%clk 0:02:18.1]} 9. Nbc3 {[%clk 0:02:47.1]} 9... exd4
{[%clk 0:02:16.3]} 10. Bxd4 {[%clk 0:02:46.1]} 10... Bd6 {[%clk 0:01:58.1]} 11.
h3 {[%clk 0:02:45.6]} 11... Re8 {[%clk 0:01:57.1]} 12. g4 {[%clk 0:02:44.7]}
12... Nd5 {[%clk 0:01:47.2]} 13. Na4 {[%clk 0:02:38.2]} 13... Ba6 {[%clk
0:01:43.9]} 14. b3 {[%clk 0:02:38.3]} 14... Bb5 {[%clk 0:01:22.8]} 15. c4 {[%clk
0:02:32]} 15... Bxa4 {[%clk 0:01:22.7]} 16. bxa4 {[%clk 0:02:30.7]} 16... Nf4
{[%clk 0:01:20]} 17. Nxf4 {[%clk 0:02:28.4]} 17... Bxf4 {[%clk 0:01:20.9]} 18.
Kg2 {[%clk 0:02:28.6]} 18... Qd6 {[%clk 0:01:11.5]} 19. Bc3 {[%clk 0:02:19.3]}
19... Qe6 {[%clk 0:01:07.8]} 20. Qe2 {[%clk 0:02:17]} 20... Rad8 {[%clk
0:01:06]} 21. Rad1 {[%clk 0:02:16.5]} 21... h6 {[%clk 0:00:59.8]} 22. Rhe1
{[%clk 0:02:15.7]} 22... Rxd1 {[%clk 0:00:53.3]} 23. Rxd1 {[%clk 0:02:15.4]}
23... Be5 {[%clk 0:00:41.5]} 24. Bxe5 {[%clk 0:02:08.5]} 24... Qxe5 {[%clk
0:00:41.6]} 25. Qe3 {[%clk 0:02:09.4]} 25... a6 {[%clk 0:00:35.8]} 26. Rd7
{[%clk 0:02:06.4]} 26... Re7 {[%clk 0:00:32.7]} 27. Rxe7 {[%clk 0:02:03.5]}
27... Qxe7 {[%clk 0:00:32.7]} 28. Qa7 {[%clk 0:02:04.4]} 28... e3 {[%clk
0:00:22.8]} 29. fxe3 {[%clk 0:02:03.3]} 29... Qe4+ {[%clk 0:00:21.3]} 30. Kg3
{[%clk 0:02:02.5]} 30... Qxc4 {[%clk 0:00:21.9]} 31. Qxc7 {[%clk 0:02:02.2]}
31... Qxa4 {[%clk 0:00:18.4]} 32. Qc8+ {[%clk 0:01:58.3]} 32... Kh7 {[%clk
0:00:18.6]} 33. Qf5+ {[%clk 0:01:58.8]} 33... Kg8 {[%clk 0:00:18.3]} 34. Qc8+
{[%clk 0:01:57.9]} 34... Kh7 {[%clk 0:00:18.5]} 35. Kf3 {[%clk 0:01:58.2]} 35...
Qc4 {[%clk 0:00:17.9]} 36. Qb7 {[%clk 0:01:57.6]} 36... Qxa2 {[%clk 0:00:16.5]}
37. Qxc6 {[%clk 0:01:56.4]} 37... Qe6 {[%clk 0:00:16.6]} 38. Qc2+ {[%clk
0:01:56.3]} 38... g6 {[%clk 0:00:16.6]} 39. Qa4 {[%clk 0:01:54.6]} 39... Qd5+
{[%clk 0:00:16.2]} 40. Ke2 {[%clk 0:01:54.5]} 40... Qb5+ {[%clk 0:00:15.9]} 41.
Qxb5 {[%clk 0:01:54.8]} 41... axb5 {[%clk 0:00:16.8]} 42. Kd3 {[%clk 0:01:55.6]}
42... Kg7 {[%clk 0:00:17.4]} 43. Kd4 {[%clk 0:01:56.1]} 43... Kf6 {[%clk
0:00:17.8]} 44. Kc5 {[%clk 0:01:56.6]} 44... Ke5 {[%clk 0:00:18.3]} 45. Kxb5
{[%clk 0:01:56.9]} 45... Ke4 {[%clk 0:00:18.8]} 46. Kc5 {[%clk 0:01:57.8]} 46...
Kxe3 {[%clk 0:00:18.4]} 47. Kd6 {[%clk 0:01:58.7]} 47... f5 {[%clk 0:00:18.9]}
0-1

[Event "Late-Titled-Tuesday-Blitz-September-12-2023"]
[Site "Chess.com"]
[Date "2023.09.12"]
[Round "9"]
[White "PepeCuenca"]
[Black "KVAIDAN"]
[Result "1-0"]
[WhiteElo "2717"]
[BlackElo "2279"]
[TimeControl "180+1"]
[EndTime "15:37:51 PDT"]
[Termination "PepeCuenca won by resignation"]

1. e4 {[%clk 0:03:00.9]} 1... e6 {[%clk 0:02:59.6]} 2. d4 {[%clk 0:03:00.7]}
2... d5 {[%clk 0:03:00]} 3. Bd3 {[%clk 0:03:01.1]} 3... dxe4 {[%clk 0:03:00]} 4.
Bxe4 {[%clk 0:03:01.6]} 4... Nf6 {[%clk 0:02:59.6]} 5. Bf3 {[%clk 0:03:02]} 5...
c5 {[%clk 0:03:00.2]} 6. Ne2 {[%clk 0:03:02]} 6... Nc6 {[%clk 0:02:58.6]} 7. Be3
{[%clk 0:03:01.6]} 7... Be7 {[%clk 0:02:55.8]} 8. Nbc3 {[%clk 0:02:58.9]} 8...
cxd4 {[%clk 0:02:55.8]} 9. Nxd4 {[%clk 0:02:59]} 9... Nxd4 {[%clk 0:02:56.2]}
10. Qxd4 {[%clk 0:02:55.7]} 10... O-O {[%clk 0:02:57.1]} 11. O-O {[%clk
0:02:46.8]} 11... Qa5 {[%clk 0:02:57.2]} 12. Rfd1 {[%clk 0:02:28.4]} 12... Bd7
{[%clk 0:02:56.1]} 13. a3 {[%clk 0:02:12.2]} 13... Bc6 {[%clk 0:02:55.9]} 14.
Bxc6 {[%clk 0:02:08]} 14... bxc6 {[%clk 0:02:55.2]} 15. Qc4 {[%clk 0:02:08.1]}
15... Nd5 {[%clk 0:02:42.6]} 16. Bd2 {[%clk 0:02:02.5]} 16... Qb6 {[%clk
0:02:36.9]} 17. Rab1 {[%clk 0:01:54.2]} 17... Bf6 {[%clk 0:02:33.9]} 18. Ne4
{[%clk 0:01:42.7]} 18... Bd4 {[%clk 0:02:31.8]} 19. Be1 {[%clk 0:01:14.7]} 19...
e5 {[%clk 0:02:27]} 20. c3 {[%clk 0:01:11.5]} 20... f5 {[%clk 0:02:27.3]} 21.
Ng5 {[%clk 0:01:03.9]} 21... Bc5 {[%clk 0:02:19.3]} 22. Ne6 {[%clk 0:01:02]}
22... Bd6 {[%clk 0:02:18.3]} 23. Nxf8 {[%clk 0:01:00.9]} 23... Rxf8 {[%clk
0:02:18.9]} 24. Qa2 {[%clk 0:00:46.8]} 24... Qc7 {[%clk 0:02:08.2]} 25. c4
{[%clk 0:00:46.1]} 25... Nf4 {[%clk 0:02:00]} 26. c5+ {[%clk 0:00:45.3]} 26...
Kh8 {[%clk 0:02:00.3]} 27. cxd6 {[%clk 0:00:39.7]} 27... Qd7 {[%clk 0:02:00.3]}
28. Qc4 {[%clk 0:00:35.8]} 28... e4 {[%clk 0:01:59]} 29. Rbc1 {[%clk 0:00:29.9]}
29... Rc8 {[%clk 0:01:50.5]} 30. Rc3 {[%clk 0:00:25]} 30... c5 {[%clk
0:01:46.8]} 31. b4 {[%clk 0:00:20.1]} 31... Qe8 {[%clk 0:01:35.5]} 32. d7 {[%clk
0:00:16.3]} 32... Qxd7 {[%clk 0:01:35.3]} 33. Rxd7 {[%clk 0:00:16]} 33... Rf8
{[%clk 0:01:35.9]} 34. Qxc5 {[%clk 0:00:15.3]} 1-0

[Event "Late-Titled-Tuesday-Blitz-September-12-2023"]
[Site "Chess.com"]
[Date "2023.09.12"]
[Round "9"]
[White "GianmarcoVaR"]
[Black "Arteler"]
[Result "0-1"]
[WhiteElo "2625"]
[BlackElo "2498"]
[TimeControl "180+1"]
[EndTime "15:37:55 PDT"]
[Termination "Arteler won on time"]

1. e4 {[%clk 0:02:36.7]} 1... e6 {[%clk 0:02:57.8]} 2. d4 {[%clk 0:02:35.9]}
2... d5 {[%clk 0:02:58.4]} 3. Nd2 {[%clk 0:02:34.7]} 3... Nf6 {[%clk 0:02:58.7]}
4. e5 {[%clk 0:02:31.6]} 4... Nfd7 {[%clk 0:02:59.1]} 5. Bd3 {[%clk 0:02:30.4]}
5... c5 {[%clk 0:02:59.6]} 6. c3 {[%clk 0:02:31]} 6... Nc6 {[%clk 0:02:59.7]} 7.
Ne2 {[%clk 0:02:31]} 7... cxd4 {[%clk 0:02:59.7]} 8. cxd4 {[%clk 0:02:31.1]}
8... f6 {[%clk 0:03:00.3]} 9. exf6 {[%clk 0:02:30.8]} 9... Nxf6 {[%clk
0:03:01.2]} 10. Nf3 {[%clk 0:02:26.3]} 10... Bd6 {[%clk 0:03:01.8]} 11. O-O
{[%clk 0:02:08.5]} 11... O-O {[%clk 0:03:01.8]} 12. Bf4 {[%clk 0:02:08]} 12...
Bxf4 {[%clk 0:03:01.8]} 13. Nxf4 {[%clk 0:02:08.6]} 13... Ne4 {[%clk 0:03:02.5]}
14. Nh5 {[%clk 0:01:22.8]} 14... Ng5 {[%clk 0:02:37.5]} 15. Ne5 {[%clk
0:01:16.4]} 15... Nxe5 {[%clk 0:02:11.2]} 16. dxe5 {[%clk 0:01:16.4]} 16... Nf7
{[%clk 0:01:59.4]} 17. f4 {[%clk 0:01:07.1]} 17... Nh6 {[%clk 0:01:57.7]} 18.
Qc2 {[%clk 0:01:02.6]} 18... Nf5 {[%clk 0:01:53.9]} 19. g4 {[%clk 0:01:00]}
19... Qh4 {[%clk 0:01:48.9]} 20. Qe2 {[%clk 0:00:24.1]} 20... Nh6 {[%clk
0:01:42.3]} 21. g5 {[%clk 0:00:17.5]} 21... Nf5 {[%clk 0:01:42.1]} 22. Rf2
{[%clk 0:00:12.2]} 22... Bd7 {[%clk 0:01:40.2]} 23. Bxf5 {[%clk 0:00:11.4]}
23... Rxf5 {[%clk 0:01:40.2]} 24. Raf1 {[%clk 0:00:11.4]} 24... Raf8 {[%clk
0:01:36.9]} 25. b4 {[%clk 0:00:06.5]} 25... a6 {[%clk 0:01:36.7]} 26. Ng3 {[%clk
0:00:04.6]} 26... Rxf4 {[%clk 0:01:34.5]} 27. Rxf4 {[%clk 0:00:03.3]} 27... Rxf4
{[%clk 0:01:35.4]} 28. Rxf4 {[%clk 0:00:02]} 28... Qxf4 {[%clk 0:01:36.3]} 29.
Qf2 {[%clk 0:00:01.4]} 29... Qxe5 {[%clk 0:01:30.7]} 30. Qb6 {[%clk 0:00:01.6]}
30... Qb8 {[%clk 0:01:23.1]} 0-1

[Event "Late-Titled-Tuesday-Blitz-September-12-2023"]
[Site "Chess.com"]
[Date "2023.09.12"]
[Round "9"]
[White "valemava"]
[Black "ChessDokmus"]
[Result "1-0"]
[WhiteElo "2365"]
[BlackElo "2212"]
[TimeControl "180+1"]
[EndTime "15:38:03 PDT"]
[Termination "valemava won by resignation"]

1. c4 {[%clk 0:03:00.9]} 1... e5 {[%clk 0:02:54.3]} 2. a3 {[%clk 0:03:01]} 2...
d6 {[%clk 0:02:50.1]} 3. b4 {[%clk 0:03:00.9]} 3... f5 {[%clk 0:02:50.1]} 4. Bb2
{[%clk 0:03:00.2]} 4... Nf6 {[%clk 0:02:50.3]} 5. d4 {[%clk 0:03:00.4]} 5... e4
{[%clk 0:02:42.8]} 6. e3 {[%clk 0:02:59.7]} 6... Be7 {[%clk 0:02:42.3]} 7. h4
{[%clk 0:02:58.9]} 7... O-O {[%clk 0:02:42]} 8. g3 {[%clk 0:02:59.2]} 8... c6
{[%clk 0:02:42.2]} 9. Nh3 {[%clk 0:02:59.1]} 9... Be6 {[%clk 0:02:41.9]} 10. Nf4
{[%clk 0:02:58.9]} 10... Bf7 {[%clk 0:02:41.5]} 11. d5 {[%clk 0:02:59.3]} 11...
cxd5 {[%clk 0:02:32.5]} 12. cxd5 {[%clk 0:03:00.2]} 12... Nbd7 {[%clk
0:02:31.7]} 13. Nc3 {[%clk 0:02:57]} 13... Ne5 {[%clk 0:02:31.2]} 14. Be2 {[%clk
0:02:56.5]} 14... Rc8 {[%clk 0:02:12]} 15. Kf1 {[%clk 0:02:55.9]} 15... Nfg4
{[%clk 0:02:07.3]} 16. Kg2 {[%clk 0:02:55.5]} 16... Qb6 {[%clk 0:01:59.1]} 17.
Na4 {[%clk 0:02:46.5]} 17... Qc7 {[%clk 0:01:48.3]} 18. Rc1 {[%clk 0:02:44.7]}
18... Qd7 {[%clk 0:01:48.2]} 19. Qb3 {[%clk 0:02:40.4]} 19... b5 {[%clk
0:01:44.6]} 20. Nc3 {[%clk 0:02:39.6]} 20... a6 {[%clk 0:01:43.2]} 21. a4 {[%clk
0:02:38.6]} 21... Nc4 {[%clk 0:01:40.4]} 22. axb5 {[%clk 0:02:35.6]} 22...
Ngxe3+ {[%clk 0:01:34.5]} 23. fxe3 {[%clk 0:02:34.8]} 23... Nxe3+ {[%clk
0:01:34.4]} 24. Kh3 {[%clk 0:02:16.1]} 24... axb5 {[%clk 0:01:31.6]} 25. Bxb5
{[%clk 0:02:14.7]} 25... Qb7 {[%clk 0:01:19.9]} 26. Bc6 {[%clk 0:02:05.9]} 26...
Qxc6 {[%clk 0:01:14.1]} 27. dxc6 {[%clk 0:02:05.4]} 27... Bxb3 {[%clk
0:01:14.1]} 28. b5 {[%clk 0:02:03.4]} 28... Bf6 {[%clk 0:01:05.2]} 29. Rhe1
{[%clk 0:01:56.5]} 29... Ng4 {[%clk 0:01:03]} 30. Ba3 {[%clk 0:01:49.4]} 30...
Rfd8 {[%clk 0:01:02.2]} 31. Ncd5 {[%clk 0:01:48.4]} 31... Bxd5 {[%clk
0:00:53.6]} 32. Nxd5 {[%clk 0:01:49.3]} 32... Nf2+ {[%clk 0:00:53.7]} 33. Kg2
{[%clk 0:01:48.8]} 33... Nd3 {[%clk 0:00:54.6]} 34. c7 {[%clk 0:01:46.6]} 34...
Nxe1+ {[%clk 0:00:52.6]} 35. Rxe1 {[%clk 0:01:42.6]} 35... Rf8 {[%clk
0:00:47.5]} 36. b6 {[%clk 0:01:42.1]} 36... Be5 {[%clk 0:00:44]} 37. b7 {[%clk
0:01:40.1]} 37... Rxc7 {[%clk 0:00:43.5]} 38. Nxc7 {[%clk 0:01:39]} 38... Rb8
{[%clk 0:00:44.4]} 39. Rb1 {[%clk 0:01:37.9]} 39... d5 {[%clk 0:00:38.3]} 40.
Nxd5 {[%clk 0:01:36.7]} 40... Kf7 {[%clk 0:00:36.4]} 41. Ne7 {[%clk 0:01:36.2]}
41... Re8 {[%clk 0:00:30.8]} 42. Nxf5 {[%clk 0:01:33.3]} 42... Bb8 {[%clk
0:00:29.2]} 43. Nd6+ {[%clk 0:01:32.9]} 43... Bxd6 {[%clk 0:00:27.1]} 44. Bxd6
{[%clk 0:01:33.8]} 44... e3 {[%clk 0:00:26.2]} 45. b8=Q {[%clk 0:01:33.5]} 45...
e2 {[%clk 0:00:26]} 46. Qxe8+ {[%clk 0:01:29.5]} 46... Kxe8 {[%clk 0:00:25.4]}
47. Re1 {[%clk 0:01:30]} 1-0

[Event "Late-Titled-Tuesday-Blitz-September-12-2023"]
[Site "Chess.com"]
[Date "2023.09.12"]
[Round "9"]
[White "SEBAZZANO"]
[Black "GMJustin"]
[Result "1-0"]
[WhiteElo "2210"]
[BlackElo "2211"]
[TimeControl "180+1"]
[EndTime "15:38:19 PDT"]
[Termination "SEBAZZANO won on time"]

1. d4 {[%clk 0:03:00]} 1... b6 {[%clk 0:02:39.9]} 2. e4 {[%clk 0:02:58.5]} 2...
Bb7 {[%clk 0:02:38.4]} 3. Nc3 {[%clk 0:02:58.5]} 3... e6 {[%clk 0:02:32.8]} 4.
Bf4 {[%clk 0:02:55.3]} 4... Bb4 {[%clk 0:02:25.9]} 5. f3 {[%clk 0:02:53.1]} 5...
d5 {[%clk 0:02:21.3]} 6. e5 {[%clk 0:02:42.9]} 6... c5 {[%clk 0:01:56.7]} 7. a3
{[%clk 0:02:34.5]} 7... Bxc3+ {[%clk 0:01:50.8]} 8. bxc3 {[%clk 0:02:35.4]} 8...
Ne7 {[%clk 0:01:48.4]} 9. Nh3 {[%clk 0:02:22.9]} 9... O-O {[%clk 0:01:40.9]} 10.
Bd3 {[%clk 0:02:01.4]} 10... Ba6 {[%clk 0:01:35.5]} 11. O-O {[%clk 0:01:57.7]}
11... Bxd3 {[%clk 0:01:24.8]} 12. Qxd3 {[%clk 0:01:57]} 12... Nbc6 {[%clk
0:01:24.5]} 13. Bg5 {[%clk 0:01:53.3]} 13... Qc7 {[%clk 0:01:17.5]} 14. f4
{[%clk 0:01:38.5]} 14... cxd4 {[%clk 0:01:09.8]} 15. cxd4 {[%clk 0:01:36.9]}
15... Nf5 {[%clk 0:01:09.7]} 16. c3 {[%clk 0:01:36.3]} 16... h6 {[%clk 0:01:00]}
17. g4 {[%clk 0:01:34.7]} 17... Nfe7 {[%clk 0:00:32.5]} 18. Bh4 {[%clk
0:01:24.4]} 18... Qd7 {[%clk 0:00:01.3]} 19. f5 {[%clk 0:01:22.1]} 19... exf5
{[%clk 0:00:01.5]} 20. gxf5 {[%clk 0:01:21.9]} 20... g6 {[%clk 0:00:01.9]} 21.
fxg6 {[%clk 0:00:49.4]} 21... fxg6 {[%clk 0:00:02]} 22. Bf6 {[%clk 0:00:46]}
22... Nf5 {[%clk 0:00:01.8]} 23. Nf4 {[%clk 0:00:44.2]} 1-0